[Event "December 19 Early 2023"]
[Site "https://www.chess.com"]
[Date "2023.12.19"]
[Round "5"]
[White "Leiva, Gianmarco"]
[Black "Martinez Ramirez, Lennis"]
[Result "1-0"]
[Board "59"]
[TimeControl "180+1"]
[WhiteFideId "3804399"]
[BlackFideId "3509079"]
[WhiteElo "2338"]
[BlackElo "2405"]
[WhiteTeam "PER"]
[BlackTeam "CUB"]
[WhiteClock "0:00:04"]
[BlackClock "0:00:00"]

1. e4 {[%clk 0:02:53]}  c6 {[%clk 0:02:52]} 2. d4 {[%clk 0:02:51]}  d5 {[%clk 0:02:53]} 3. exd5 {[%clk 0:02:52]}  cxd5 {[%clk 0:02:53]} 4. Bd3 {[%clk 0:02:49]}  Nc6 {[%clk 0:02:53]} 5. c3 {[%clk 0:02:49]}  Nf6 {[%clk 0:02:54]} 6. Nf3 {[%clk 0:02:47]}  Bg4 {[%clk 0:02:53]} 7. Bf4 {[%clk 0:02:46]}  e6 {[%clk 0:02:53]} 8. Nbd2 {[%clk 0:02:46]}  Bd6 {[%clk 0:02:53]} 9. Bxd6 {[%clk 0:02:29]}  Qxd6 {[%clk 0:02:54]} 10. O-O {[%clk 0:02:29]}  O-O-O {[%clk 0:02:53]} 11. Re1 {[%clk 0:02:28]}  Kb8 {[%clk 0:02:53]} 12. b4 {[%clk 0:02:28]}  Rc8 {[%clk 0:02:53]} 13. Nb3 {[%clk 0:02:25]}  Qf4 {[%clk 0:02:52]} 14. Qd2 {[%clk 0:02:12]}  Qxd2 {[%clk 0:02:50]} 15. Nfxd2 {[%clk 0:02:12]}  Ne7 {[%clk 0:02:50]} 16. c4 {[%clk 0:01:45]}  dxc4 {[%clk 0:02:45]} 17. Nxc4 {[%clk 0:01:45]}  Bf5 {[%clk 0:02:43]} 18. Bxf5 {[%clk 0:01:39]}  Nxf5 {[%clk 0:02:43]} 19. Ne5 {[%clk 0:01:38]}  Rc7 {[%clk 0:02:42]} 20. Rac1 {[%clk 0:01:37]}  Rhc8 {[%clk 0:02:41]} 21. Nc5 {[%clk 0:01:35]}  Nxd4 {[%clk 0:02:33]} 22. Rcd1 {[%clk 0:01:28]}  Nc6 {[%clk 0:02:31]} 23. Nxc6+ {[%clk 0:01:10]}  Rxc6 {[%clk 0:02:29]} 24. a3 {[%clk 0:01:11]}  b6 {[%clk 0:02:26]} 25. Nd7+ {[%clk 0:01:04]}  Nxd7 {[%clk 0:02:25]} 26. Rxd7 {[%clk 0:01:05]}  R8c7 {[%clk 0:02:26]} 27. Rd8+ {[%clk 0:01:04]}  Kb7 {[%clk 0:02:26]} 28. h4 {[%clk 0:00:57]}  h5 {[%clk 0:02:23]} 29. Re3 {[%clk 0:00:53]}  Rc3 {[%clk 0:02:19]} 30. Rxc3 {[%clk 0:00:34]}  Rxc3 {[%clk 0:02:20]} 31. Rd7+ {[%clk 0:00:34]}  Rc7 {[%clk 0:02:20]} 32. Rd3 {[%clk 0:00:35]}  Kc6 {[%clk 0:02:18]} 33. Rg3 {[%clk 0:00:16]}  g6 {[%clk 0:02:11]} 34. Rc3+ {[%clk 0:00:12]}  Kd6 {[%clk 0:02:11]} 35. Rd3+ {[%clk 0:00:11]}  Ke5 {[%clk 0:02:11]} 36. Kh2 {[%clk 0:00:10]}  Ke4 {[%clk 0:02:09]} 37. Rd8 {[%clk 0:00:07]}  e5 {[%clk 0:02:05]} 38. Kg3 {[%clk 0:00:07]}  Rc3+ {[%clk 0:02:04]} 39. f3+ {[%clk 0:00:07]}  Kf5 {[%clk 0:02:03]} 40. Rd7 {[%clk 0:00:08]}  Rxa3 {[%clk 0:02:01]} 41. Rxf7+ {[%clk 0:00:08]}  Ke6 {[%clk 0:02:00]} 42. Rb7 {[%clk 0:00:08]}  Ra4 {[%clk 0:01:58]} 43. b5 {[%clk 0:00:09]}  Kf6 {[%clk 0:01:46]} 44. Rc7 {[%clk 0:00:09]}  g5 {[%clk 0:01:45]} 45. hxg5+ {[%clk 0:00:06]}  Kxg5 {[%clk 0:01:46]} 46. Rg7+ {[%clk 0:00:06]}  Kf5 {[%clk 0:01:45]} 47. Rh7 {[%clk 0:00:06]}  Kg6 {[%clk 0:01:32]} 48. Re7 {[%clk 0:00:06]}  h4+ {[%clk 0:01:32]} 49. Kh3 {[%clk 0:00:05]}  Kf5 {[%clk 0:01:29]} 50. Rf7+ {[%clk 0:00:03]}  Ke6 {[%clk 0:01:28]} 51. Rh7 {[%clk 0:00:02]}  Kd5 {[%clk 0:01:09]} 52. Rxh4 {[%clk 0:00:02]}  Ra1 {[%clk 0:00:58]} 53. Rb4 {[%clk 0:00:02]}  Rh1+ {[%clk 0:00:40]} 54. Kg4 {[%clk 0:00:02]}  Rd1 {[%clk 0:00:40]} 55. Rb2 {[%clk 0:00:02]}  e4 {[%clk 0:00:37]} 56. fxe4+ {[%clk 0:00:02]}  Kxe4 {[%clk 0:00:38]} 57. Ra2 {[%clk 0:00:03]}  Rd7 {[%clk 0:00:38]} 58. Rb2 {[%clk 0:00:02]}  Rg7+ {[%clk 0:00:37]} 59. Kh5 {[%clk 0:00:02]}  Rg3 {[%clk 0:00:32]} 60. Kh4 {[%clk 0:00:02]}  Rg8 {[%clk 0:00:21]} 61. g4 {[%clk 0:00:02]}  Rh8+ {[%clk 0:00:13]} 62. Kg3 {[%clk 0:00:02]}  Rg8 {[%clk 0:00:13]} 63. Rb1 {[%clk 0:00:02]}  Rg7 {[%clk 0:00:12]} 64. Kh4 {[%clk 0:00:02]}  Rh7+ {[%clk 0:00:12]} 65. Kg5 {[%clk 0:00:03]}  Rg7+ {[%clk 0:00:12]} 66. Kh5 {[%clk 0:00:04]}  Rg8 {[%clk 0:00:02]} 67. g5 {[%clk 0:00:03]}  Kf5 {[%clk 0:00:01]} 68. Rf1+ {[%clk 0:00:04]}  Ke6 {[%clk 0:00:00]} 69. g6 {[%clk 0:00:04]} 1-0

[Event "December 19 Early 2023"]
[Site "https://www.chess.com"]
[Date "2023.12.19"]
[Round "5"]
[White "Starozhilov, Leonid"]
[Black "Rangel, Daniel"]
[Result "1-0"]
[Board "60"]
[TimeControl "180+1"]
[WhiteFideId "14106752"]
[BlackFideId "2124475"]
[WhiteElo "2246"]
[BlackElo "2267"]
[WhiteTeam "UKR"]
[BlackTeam "BRA"]
[WhiteClock "0:00:02"]
[BlackClock "0:00:00"]

1. e4 {[%clk 0:03:00]}  c5 {[%clk 0:02:59]} 2. Nf3 {[%clk 0:03:00]}  g6 {[%clk 0:02:59]} 3. c4 {[%clk 0:02:59]}  Bg7 {[%clk 0:02:58]} 4. d4 {[%clk 0:03:00]}  cxd4 {[%clk 0:02:58]} 5. Nxd4 {[%clk 0:03:01]}  Nc6 {[%clk 0:02:58]} 6. Nc2 {[%clk 0:02:58]}  Nf6 {[%clk 0:02:58]} 7. Nc3 {[%clk 0:02:58]}  O-O {[%clk 0:02:58]} 8. Be2 {[%clk 0:02:58]}  d6 {[%clk 0:02:51]} 9. Be3 {[%clk 0:02:58]}  Nd7 {[%clk 0:02:52]} 10. Qd2 {[%clk 0:02:52]}  Nc5 {[%clk 0:02:51]} 11. f3 {[%clk 0:02:53]}  Ne6 {[%clk 0:02:50]} 12. Rb1 {[%clk 0:02:31]}  a5 {[%clk 0:02:47]} 13. O-O {[%clk 0:02:28]}  Nb4 {[%clk 0:02:44]} 14. a3 {[%clk 0:02:11]}  Nxc2 {[%clk 0:02:39]} 15. Qxc2 {[%clk 0:02:12]}  Bd7 {[%clk 0:02:40]} 16. Rfd1 {[%clk 0:02:10]}  a4 {[%clk 0:02:33]} 17. Nd5 {[%clk 0:02:09]}  Bc6 {[%clk 0:02:27]} 18. Nb4 {[%clk 0:01:57]}  Qa5 {[%clk 0:02:22]} 19. Kh1 {[%clk 0:01:57]}  Nc5 {[%clk 0:02:19]} 20. Qd2 {[%clk 0:01:51]}  Nb3 {[%clk 0:02:14]} 21. Qe1 {[%clk 0:01:51]}  Rfb8 {[%clk 0:02:03]} 22. Qf2 {[%clk 0:01:45]}  Nc5 {[%clk 0:01:57]} 23. Bd4 {[%clk 0:01:32]}  Bxd4 {[%clk 0:01:52]} 24. Qxd4 {[%clk 0:01:33]}  Qc7 {[%clk 0:01:48]} 25. Qe3 {[%clk 0:01:30]}  e5 {[%clk 0:01:43]} 26. Rbc1 {[%clk 0:01:27]}  Nb3 {[%clk 0:01:40]} 27. Rc3 {[%clk 0:01:25]}  Rd8 {[%clk 0:01:31]} 28. Rcd3 {[%clk 0:01:02]}  Nc5 {[%clk 0:01:28]} 29. R3d2 {[%clk 0:01:00]}  Nb3 {[%clk 0:01:27]} 30. Rc2 {[%clk 0:01:00]}  Nd4 {[%clk 0:01:25]} 31. Rcc1 {[%clk 0:01:00]}  Nb3 {[%clk 0:01:24]} 32. Rb1 {[%clk 0:00:57]}  Kg7 {[%clk 0:01:18]} 33. Nc2 {[%clk 0:00:55]}  Nc5 {[%clk 0:01:17]} 34. Qf2 {[%clk 0:00:49]}  Rf8 {[%clk 0:01:12]} 35. Qg3 {[%clk 0:00:45]}  f5 {[%clk 0:01:08]} 36. exf5 {[%clk 0:00:45]}  Rxf5 {[%clk 0:01:06]} 37. Ne3 {[%clk 0:00:45]}  Rf4 {[%clk 0:01:00]} 38. Nd5 {[%clk 0:00:39]}  Bxd5 {[%clk 0:00:58]} 39. Rxd5 {[%clk 0:00:40]}  Raf8 {[%clk 0:00:50]} 40. Rbd1 {[%clk 0:00:39]}  R8f6 {[%clk 0:00:48]} 41. h3 {[%clk 0:00:37]}  e4 {[%clk 0:00:42]} 42. Kh2 {[%clk 0:00:33]}  Qb6 {[%clk 0:00:24]} 43. Rxd6 {[%clk 0:00:25]}  Qxb2 {[%clk 0:00:17]} 44. R1d2 {[%clk 0:00:22]}  Qc3 {[%clk 0:00:14]} 45. R6d5 {[%clk 0:00:16]}  h5 {[%clk 0:00:09]} 46. Qg5 {[%clk 0:00:12]}  exf3 {[%clk 0:00:06]} 47. Bxf3 {[%clk 0:00:11]}  Rf7 {[%clk 0:00:03]} 48. Rd6 {[%clk 0:00:05]}  R4f6 {[%clk 0:00:03]} 49. Rxf6 {[%clk 0:00:05]}  Rxf6 {[%clk 0:00:03]} 50. Rd5 {[%clk 0:00:04]}  b6 {[%clk 0:00:03]} 51. Re5 {[%clk 0:00:03]}  Rf7 {[%clk 0:00:00]} 52. Be4 {[%clk 0:00:02]} 1-0

[Event "December 19 Early 2023"]
[Site "https://www.chess.com"]
[Date "2023.12.19"]
[Round "5"]
[White "Srihari L R"]
[Black "Begunov, Konstantin"]
[Result "1/2-1/2"]
[Board "62"]
[TimeControl "180+1"]
[WhiteFideId "46617116"]
[BlackFideId "4118510"]
[WhiteElo "2338"]
[BlackElo "2082"]
[WhiteTeam "IND"]
[BlackTeam "RUS"]
[WhiteClock "0:00:22"]
[BlackClock "0:00:44"]

1. d4 {[%clk 0:03:00]}  d5 {[%clk 0:03:00]} 2. c4 {[%clk 0:02:58]}  c6 {[%clk 0:03:00]} 3. Nf3 {[%clk 0:02:56]}  Nf6 {[%clk 0:03:01]} 4. Qc2 {[%clk 0:02:55]}  Bg4 {[%clk 0:03:00]} 5. Ne5 {[%clk 0:02:52]}  Bh5 {[%clk 0:02:58]} 6. Bf4 {[%clk 0:02:36]}  e6 {[%clk 0:02:58]} 7. e3 {[%clk 0:02:36]}  Nbd7 {[%clk 0:02:57]} 8. Nc3 {[%clk 0:02:35]}  Nxe5 {[%clk 0:02:55]} 9. Bxe5 {[%clk 0:02:32]}  Bd6 {[%clk 0:02:52]} 10. Bg3 {[%clk 0:02:29]}  Bg6 {[%clk 0:02:52]} 11. Bd3 {[%clk 0:02:29]}  Bxd3 {[%clk 0:02:51]} 12. Qxd3 {[%clk 0:02:29]}  O-O {[%clk 0:02:50]} 13. O-O {[%clk 0:02:29]}  a6 {[%clk 0:02:46]} 14. c5 {[%clk 0:02:24]}  Bxg3 {[%clk 0:02:45]} 15. hxg3 {[%clk 0:02:24]}  e5 {[%clk 0:02:41]} 16. dxe5 {[%clk 0:02:16]}  Nd7 {[%clk 0:02:41]} 17. Qd4 {[%clk 0:02:16]}  Qe7 {[%clk 0:02:37]} 18. e4 {[%clk 0:02:15]}  dxe4 {[%clk 0:02:29]} 19. Nxe4 {[%clk 0:01:57]}  Qxe5 {[%clk 0:02:18]} 20. Qxd7 {[%clk 0:01:46]}  Qxe4 {[%clk 0:02:15]} 21. Qxb7 {[%clk 0:01:45]}  Rfb8 {[%clk 0:02:07]} 22. Qc7 {[%clk 0:01:39]}  Rxb2 {[%clk 0:02:05]} 23. Rad1 {[%clk 0:01:24]}  g6 {[%clk 0:01:49]} 24. Rd6 {[%clk 0:01:17]}  Rxa2 {[%clk 0:01:28]} 25. Rxc6 {[%clk 0:01:17]}  Rc2 {[%clk 0:01:22]} 26. Rf6 {[%clk 0:01:08]}  Rf8 {[%clk 0:01:07]} 27. Rxa6 {[%clk 0:01:05]}  Qc4 {[%clk 0:00:59]} 28. Raa1 {[%clk 0:00:28]}  Qxc5 {[%clk 0:00:57]} 29. Qxc5 {[%clk 0:00:28]}  Rxc5 {[%clk 0:00:58]} 30. Ra2 {[%clk 0:00:28]}  Rf5 {[%clk 0:00:58]} 31. Re1 {[%clk 0:00:27]}  h5 {[%clk 0:00:58]} 32. f3 {[%clk 0:00:27]}  Kg7 {[%clk 0:00:58]} 33. Kh2 {[%clk 0:00:26]}  Rd8 {[%clk 0:00:58]} 34. Ree2 {[%clk 0:00:25]}  Rd6 {[%clk 0:00:58]} 35. Ra7 {[%clk 0:00:25]}  Rd8 {[%clk 0:00:57]} 36. Rb7 {[%clk 0:00:23]}  Rd6 {[%clk 0:00:57]} 37. Rb8 {[%clk 0:00:22]}  Rd1 {[%clk 0:00:57]} 38. Rb4 {[%clk 0:00:18]}  Rc5 {[%clk 0:00:55]} 39. g4 {[%clk 0:00:15]}  h4 {[%clk 0:00:49]} 40. g5 {[%clk 0:00:14]}  Rxg5 {[%clk 0:00:48]} 41. Rxh4 {[%clk 0:00:14]}  Rf5 {[%clk 0:00:48]} 42. Kg3 {[%clk 0:00:13]}  Rd6 {[%clk 0:00:46]} 43. Kf2 {[%clk 0:00:13]}  Rdd5 {[%clk 0:00:45]} 44. Rhe4 {[%clk 0:00:14]}  Rf6 {[%clk 0:00:45]} 45. g4 {[%clk 0:00:14]}  Rd3 {[%clk 0:00:44]} 46. R2e3 {[%clk 0:00:14]}  Rxe3 {[%clk 0:00:44]} 47. Kxe3 {[%clk 0:00:15]}  g5 {[%clk 0:00:45]} 48. Re5 {[%clk 0:00:13]}  Kg6 {[%clk 0:00:45]} 49. Kf2 {[%clk 0:00:13]}  Ra6 {[%clk 0:00:45]} 50. Kg3 {[%clk 0:00:13]}  f6 {[%clk 0:00:45]} 51. Re8 {[%clk 0:00:14]}  Ra2 {[%clk 0:00:45]} 52. Rg8+ {[%clk 0:00:14]}  Kf7 {[%clk 0:00:45]} 53. Rb8 {[%clk 0:00:15]}  Kg6 {[%clk 0:00:46]} 54. Rb7 {[%clk 0:00:14]}  Rc2 {[%clk 0:00:45]} 55. Rb5 {[%clk 0:00:14]}  Ra2 {[%clk 0:00:45]} 56. Rb3 {[%clk 0:00:14]}  Rc2 {[%clk 0:00:44]} 57. f4 {[%clk 0:00:14]}  gxf4+ {[%clk 0:00:44]} 58. Kxf4 {[%clk 0:00:15]}  Rc4+ {[%clk 0:00:43]} 59. Kf3 {[%clk 0:00:16]}  Kg5 {[%clk 0:00:42]} 60. Rb5+ {[%clk 0:00:16]}  Kg6 {[%clk 0:00:43]} 61. Kg3 {[%clk 0:00:16]}  Ra4 {[%clk 0:00:43]} 62. Kh4 {[%clk 0:00:17]}  Ra1 {[%clk 0:00:43]} 63. Rb6 {[%clk 0:00:16]}  Rh1+ {[%clk 0:00:43]} 64. Kg3 {[%clk 0:00:17]}  Rg1+ {[%clk 0:00:44]} 65. Kf3 {[%clk 0:00:17]}  Rf1+ {[%clk 0:00:44]} 66. Kg3 {[%clk 0:00:18]}  Rg1+ {[%clk 0:00:44]} 67. Kf3 {[%clk 0:00:18]}  Rf1+ {[%clk 0:00:44]} 68. Kg2 {[%clk 0:00:19]}  Rf4 {[%clk 0:00:43]} 69. Kg3 {[%clk 0:00:19]}  Rf1 {[%clk 0:00:44]} 70. Kg2 {[%clk 0:00:20]}  Rf4 {[%clk 0:00:44]} 71. Kg3 {[%clk 0:00:20]}  Rf1 {[%clk 0:00:44]} 72. Ra6 {[%clk 0:00:20]}  Rg1+ {[%clk 0:00:44]} 73. Kf3 {[%clk 0:00:20]}  Rf1+ {[%clk 0:00:44]} 74. Kg3 {[%clk 0:00:21]}  Rg1+ {[%clk 0:00:44]} 75. Kf3 {[%clk 0:00:21]}  Rf1+ {[%clk 0:00:44]} 76. Kg3 {[%clk 0:00:22]} 1/2-1/2

[Event "December 19 Early 2023"]
[Site "https://www.chess.com"]
[Date "2023.12.19"]
[Round "5"]
[White "Pak, Yevgeniy"]
[Black "Durucay, Uygar"]
[Result "1-0"]
[Board "63"]
[TimeControl "180+1"]
[WhiteFideId "14201712"]
[BlackFideId "44591560"]
[WhiteElo "2320"]
[BlackElo "1913"]
[WhiteTeam "KAZ"]
[BlackTeam "TUR"]
[WhiteClock "0:00:59"]
[BlackClock "0:00:14"]

1. e4 {[%clk 0:03:00]}  c6 {[%clk 0:02:58]} 2. Nc3 {[%clk 0:02:57]}  d5 {[%clk 0:02:58]} 3. Qf3 {[%clk 0:02:58]}  dxe4 {[%clk 0:02:56]} 4. Nxe4 {[%clk 0:02:57]}  Nf6 {[%clk 0:02:55]} 5. Bc4 {[%clk 0:02:56]}  e6 {[%clk 0:01:50]} 6. Ne2 {[%clk 0:02:53]}  Be7 {[%clk 0:01:47]} 7. d4 {[%clk 0:02:47]}  O-O {[%clk 0:01:45]} 8. O-O {[%clk 0:02:45]}  Nbd7 {[%clk 0:01:40]} 9. Nxf6+ {[%clk 0:02:37]}  Nxf6 {[%clk 0:01:40]} 10. Bf4 {[%clk 0:02:33]}  Nd5 {[%clk 0:01:37]} 11. Be5 {[%clk 0:02:30]}  b5 {[%clk 0:01:31]} 12. Bd3 {[%clk 0:02:29]}  Bb7 {[%clk 0:01:18]} 13. Rfe1 {[%clk 0:02:23]}  Bf6 {[%clk 0:01:17]} 14. Ng3 {[%clk 0:02:19]}  g6 {[%clk 0:01:14]} 15. Ne4 {[%clk 0:02:17]}  Bg7 {[%clk 0:01:06]} 16. Bxg7 {[%clk 0:02:17]}  Kxg7 {[%clk 0:01:07]} 17. Nc5 {[%clk 0:02:18]}  Qe7 {[%clk 0:00:52]} 18. c3 {[%clk 0:02:13]}  Rab8 {[%clk 0:00:52]} 19. a4 {[%clk 0:02:09]}  a6 {[%clk 0:00:51]} 20. a5 {[%clk 0:02:06]}  Rfd8 {[%clk 0:00:44]} 21. Qg3 {[%clk 0:02:06]}  Qd6 {[%clk 0:00:39]} 22. Qh4 {[%clk 0:01:58]}  Nf4 {[%clk 0:00:36]} 23. Be4 {[%clk 0:01:57]}  Nd5 {[%clk 0:00:31]} 24. Nxb7 {[%clk 0:01:56]}  Rxb7 {[%clk 0:00:31]} 25. Qg3 {[%clk 0:01:49]}  Qxg3 {[%clk 0:00:27]} 26. hxg3 {[%clk 0:01:48]}  Rbd7 {[%clk 0:00:27]} 27. Kf1 {[%clk 0:01:43]}  Rd6 {[%clk 0:00:23]} 28. Bxd5 {[%clk 0:01:38]}  Rxd5 {[%clk 0:00:22]} 29. b4 {[%clk 0:01:35]}  Kf6 {[%clk 0:00:21]} 30. Ke2 {[%clk 0:01:33]}  e5 {[%clk 0:00:21]} 31. dxe5+ {[%clk 0:01:26]}  Rxe5+ {[%clk 0:00:22]} 32. Kf1 {[%clk 0:01:26]}  Rd3 {[%clk 0:00:22]} 33. Rac1 {[%clk 0:01:18]}  Rxe1+ {[%clk 0:00:20]} 34. Kxe1 {[%clk 0:01:17]}  Ke5 {[%clk 0:00:20]} 35. Ke2 {[%clk 0:01:18]}  Rd8 {[%clk 0:00:18]} 36. Ke3 {[%clk 0:01:17]}  Re8 {[%clk 0:00:18]} 37. Rd1 {[%clk 0:01:01]}  Re7 {[%clk 0:00:19]} 38. g4 {[%clk 0:00:59]}  f5 {[%clk 0:00:19]} 39. g5 {[%clk 0:00:59]}  Re6 {[%clk 0:00:14]} 40. f4# {[%clk 0:00:59]} 1-0

[Event "December 19 Early 2023"]
[Site "https://www.chess.com"]
[Date "2023.12.19"]
[Round "5"]
[White "Kavyev, Ruslan"]
[Black "Abasov, Nijat"]
[Result "1-0"]
[Board "65"]
[TimeControl "180+1"]
[WhiteFideId "34110981"]
[BlackFideId "13402960"]
[WhiteElo "2336"]
[BlackElo "2561"]
[WhiteTeam "RUS"]
[BlackTeam "AZE"]
[WhiteClock "0:00:19"]
[BlackClock "0:00:01"]

1. d4 {[%clk 0:03:00]}  Nf6 {[%clk 0:02:59]} 2. c4 {[%clk 0:03:01]}  e6 {[%clk 0:02:59]} 3. g3 {[%clk 0:03:01]}  d5 {[%clk 0:02:59]} 4. Bg2 {[%clk 0:03:01]}  dxc4 {[%clk 0:02:59]} 5. Nf3 {[%clk 0:03:01]}  Bb4+ {[%clk 0:02:59]} 6. Nbd2 {[%clk 0:03:01]}  O-O {[%clk 0:02:58]} 7. Qc2 {[%clk 0:03:01]}  b5 {[%clk 0:02:57]} 8. a4 {[%clk 0:03:01]}  c6 {[%clk 0:02:57]} 9. axb5 {[%clk 0:03:00]}  cxb5 {[%clk 0:02:58]} 10. Ng5 {[%clk 0:03:00]}  h6 {[%clk 0:02:53]} 11. h4 {[%clk 0:02:23]}  g6 {[%clk 0:01:56]} 12. Nxf7 {[%clk 0:02:01]}  Kxf7 {[%clk 0:01:57]} 13. Bxa8 {[%clk 0:02:01]}  a5 {[%clk 0:01:56]} 14. e3 {[%clk 0:01:50]}  a4 {[%clk 0:01:42]} 15. Bf3 {[%clk 0:01:48]}  h5 {[%clk 0:01:33]} 16. O-O {[%clk 0:01:47]}  Qb6 {[%clk 0:01:30]} 17. Ne4 {[%clk 0:01:47]}  Nbd7 {[%clk 0:01:21]} 18. Ng5+ {[%clk 0:01:44]}  Kg7 {[%clk 0:01:20]} 19. e4 {[%clk 0:01:44]}  Nh7 {[%clk 0:01:02]} 20. Nxh7 {[%clk 0:01:38]}  Rxf3 {[%clk 0:00:59]} 21. Ng5 {[%clk 0:01:37]}  Rf8 {[%clk 0:00:57]} 22. Be3 {[%clk 0:01:36]}  Qd6 {[%clk 0:00:56]} 23. d5 {[%clk 0:01:22]}  Ne5 {[%clk 0:00:45]} 24. Rad1 {[%clk 0:01:10]}  Nd3 {[%clk 0:00:35]} 25. Rxd3 {[%clk 0:00:48]}  cxd3 {[%clk 0:00:36]} 26. Qxd3 {[%clk 0:00:48]}  Bd7 {[%clk 0:00:31]} 27. e5 {[%clk 0:00:47]}  Qxd5 {[%clk 0:00:28]} 28. Qxd5 {[%clk 0:00:32]}  exd5 {[%clk 0:00:29]} 29. e6 {[%clk 0:00:33]}  Bc8 {[%clk 0:00:19]} 30. Bd4+ {[%clk 0:00:33]}  Kh6 {[%clk 0:00:17]} 31. Rc1 {[%clk 0:00:31]}  Ba5 {[%clk 0:00:03]} 32. e7 {[%clk 0:00:28]}  Re8 {[%clk 0:00:02]} 33. Nf7+ {[%clk 0:00:29]}  Kh7 {[%clk 0:00:02]} 34. Nd6 {[%clk 0:00:26]}  Rxe7 {[%clk 0:00:03]} 35. Rxc8 {[%clk 0:00:27]}  g5 {[%clk 0:00:03]} 36. hxg5 {[%clk 0:00:24]}  Bb4 {[%clk 0:00:01]} 37. Nf5 {[%clk 0:00:23]}  Re1+ {[%clk 0:00:01]} 38. Kg2 {[%clk 0:00:23]}  Kg6 {[%clk 0:00:01]} 39. Nh4+ {[%clk 0:00:19]} 1-0

[Event "December 19 Early 2023"]
[Site "https://www.chess.com"]
[Date "2023.12.19"]
[Round "5"]
[White "Ghevondyan, Arman"]
[Black "Krzyzanowski, Marcin"]
[Result "0-1"]
[Board "71"]
[TimeControl "180+1"]
[WhiteFideId "13312073"]
[BlackFideId "1132199"]
[WhiteElo "2176"]
[BlackElo "2471"]
[WhiteTeam "ARM"]
[BlackTeam "POL"]
[WhiteClock "0:00:10"]
[BlackClock "0:00:15"]

1. Nf3 {[%clk 0:03:00]}  Nf6 {[%clk 0:02:59]} 2. g3 {[%clk 0:03:00]}  b5 {[%clk 0:02:58]} 3. Bg2 {[%clk 0:02:58]}  Bb7 {[%clk 0:02:58]} 4. O-O {[%clk 0:02:56]}  e6 {[%clk 0:02:57]} 5. d4 {[%clk 0:02:53]}  d5 {[%clk 0:02:55]} 6. Ne5 {[%clk 0:02:52]}  Nbd7 {[%clk 0:02:53]} 7. Na3 {[%clk 0:02:52]}  b4 {[%clk 0:02:45]} 8. Nac4 {[%clk 0:02:50]}  Nxe5 {[%clk 0:02:41]} 9. Nxe5 {[%clk 0:02:41]}  Nd7 {[%clk 0:02:36]} 10. c4 {[%clk 0:02:35]}  Nxe5 {[%clk 0:02:27]} 11. dxe5 {[%clk 0:02:35]}  c6 {[%clk 0:02:21]} 12. Qc2 {[%clk 0:02:18]}  Be7 {[%clk 0:02:15]} 13. Rd1 {[%clk 0:02:18]}  Qa5 {[%clk 0:02:03]} 14. Bf4 {[%clk 0:01:56]}  O-O {[%clk 0:02:00]} 15. e4 {[%clk 0:01:56]}  Rfd8 {[%clk 0:01:37]} 16. exd5 {[%clk 0:01:56]}  cxd5 {[%clk 0:01:38]} 17. cxd5 {[%clk 0:01:44]}  Bxd5 {[%clk 0:01:38]} 18. Bxd5 {[%clk 0:01:43]}  Rxd5 {[%clk 0:01:37]} 19. Rxd5 {[%clk 0:01:41]}  Qxd5 {[%clk 0:01:38]} 20. Rd1 {[%clk 0:01:33]}  Qxa2 {[%clk 0:01:18]} 21. Rd7 {[%clk 0:01:28]}  Bf8 {[%clk 0:01:15]} 22. Be3 {[%clk 0:01:15]}  a5 {[%clk 0:00:56]} 23. Qe4 {[%clk 0:01:14]}  Rc8 {[%clk 0:00:47]} 24. Qb7 {[%clk 0:00:43]}  Qc4 {[%clk 0:00:39]} 25. Rxf7 {[%clk 0:00:40]}  a4 {[%clk 0:00:40]} 26. Rd7 {[%clk 0:00:24]}  a3 {[%clk 0:00:37]} 27. bxa3 {[%clk 0:00:20]}  bxa3 {[%clk 0:00:38]} 28. Qf3 {[%clk 0:00:20]}  a2 {[%clk 0:00:17]} 29. Qf7+ {[%clk 0:00:20]}  Kh8 {[%clk 0:00:17]} 30. Bd4 {[%clk 0:00:20]}  Qxd4 {[%clk 0:00:15]} 31. Qxe6 {[%clk 0:00:12]}  a1=Q+ {[%clk 0:00:15]} 32. Kg2 {[%clk 0:00:12]}  Qe4+ {[%clk 0:00:15]} 33. Kh3 {[%clk 0:00:10]}  Qf1# {[%clk 0:00:15]} 0-1

[Event "December 19 Early 2023"]
[Site "https://www.chess.com"]
[Date "2023.12.19"]
[Round "5"]
[White "Kleinman, Michael"]
[Black "Yaran, Siar"]
[Result "1/2-1/2"]
[Board "72"]
[TimeControl "180+1"]
[WhiteFideId "2609479"]
[BlackFideId "6323006"]
[WhiteElo "2287"]
[BlackElo "2191"]
[WhiteTeam "CAN"]
[BlackTeam "TUR"]
[WhiteClock "0:00:04"]
[BlackClock "0:00:04"]

1. Nf3 {[%clk 0:02:21]}  Nf6 {[%clk 0:02:58]} 2. d4 {[%clk 0:02:21]}  e6 {[%clk 0:02:58]} 3. Bf4 {[%clk 0:02:22]}  d5 {[%clk 0:02:56]} 4. e3 {[%clk 0:02:22]}  Bd6 {[%clk 0:02:56]} 5. Bg3 {[%clk 0:02:21]}  O-O {[%clk 0:02:56]} 6. Bd3 {[%clk 0:02:21]}  c5 {[%clk 0:02:56]} 7. c3 {[%clk 0:02:21]}  Qc7 {[%clk 0:02:56]} 8. Nbd2 {[%clk 0:02:20]}  Nbd7 {[%clk 0:02:55]} 9. e4 {[%clk 0:02:18]}  e5 {[%clk 0:02:50]} 10. O-O {[%clk 0:02:12]}  Re8 {[%clk 0:02:33]} 11. Re1 {[%clk 0:02:12]}  exd4 {[%clk 0:02:21]} 12. cxd4 {[%clk 0:02:11]}  Bxg3 {[%clk 0:02:20]} 13. hxg3 {[%clk 0:02:09]}  dxe4 {[%clk 0:02:12]} 14. Nxe4 {[%clk 0:02:08]}  Nxe4 {[%clk 0:02:11]} 15. Bxe4 {[%clk 0:02:07]}  Nf6 {[%clk 0:02:11]} 16. Qc2 {[%clk 0:01:48]}  Rxe4 {[%clk 0:01:00]} 17. Rxe4 {[%clk 0:01:48]}  Bf5 {[%clk 0:01:00]} 18. Re7 {[%clk 0:01:11]}  Qxe7 {[%clk 0:00:58]} 19. Qxf5 {[%clk 0:01:11]}  cxd4 {[%clk 0:00:54]} 20. Rd1 {[%clk 0:01:05]}  Rd8 {[%clk 0:00:52]} 21. Rxd4 {[%clk 0:01:04]}  Rxd4 {[%clk 0:00:43]} 22. Nxd4 {[%clk 0:01:05]}  g6 {[%clk 0:00:29]} 23. Qc8+ {[%clk 0:00:55]}  Kg7 {[%clk 0:00:29]} 24. Qc3 {[%clk 0:00:47]}  Qe5 {[%clk 0:00:22]} 25. Nb5 {[%clk 0:00:29]}  Qxc3 {[%clk 0:00:19]} 26. Nxc3 {[%clk 0:00:29]}  Kf8 {[%clk 0:00:18]} 27. f3 {[%clk 0:00:29]}  Ke7 {[%clk 0:00:18]} 28. Kf2 {[%clk 0:00:30]}  Kd6 {[%clk 0:00:16]} 29. g4 {[%clk 0:00:30]}  Kc5 {[%clk 0:00:15]} 30. g5 {[%clk 0:00:27]}  Nd5 {[%clk 0:00:14]} 31. Ne4+ {[%clk 0:00:25]}  Kd4 {[%clk 0:00:14]} 32. Nd6 {[%clk 0:00:25]}  b6 {[%clk 0:00:13]} 33. Nxf7 {[%clk 0:00:24]}  Nb4 {[%clk 0:00:13]} 34. f4 {[%clk 0:00:19]}  Nd3+ {[%clk 0:00:13]} 35. Kf3 {[%clk 0:00:19]}  Nxb2 {[%clk 0:00:13]} 36. g4 {[%clk 0:00:18]}  Nc4 {[%clk 0:00:12]} 37. f5 {[%clk 0:00:18]}  gxf5 {[%clk 0:00:10]} 38. gxf5 {[%clk 0:00:17]}  Kd5 {[%clk 0:00:09]} 39. Kf4 {[%clk 0:00:16]}  b5 {[%clk 0:00:10]} 40. g6 {[%clk 0:00:16]}  hxg6 {[%clk 0:00:10]} 41. fxg6 {[%clk 0:00:16]}  Ke6 {[%clk 0:00:11]} 42. Kg5 {[%clk 0:00:16]}  Ke7 {[%clk 0:00:10]} 43. Kh6 {[%clk 0:00:14]}  Ne3 {[%clk 0:00:10]} 44. Kh7 {[%clk 0:00:13]}  Nf5 {[%clk 0:00:09]} 45. Nh6 {[%clk 0:00:13]}  Nd6 {[%clk 0:00:07]} 46. g7 {[%clk 0:00:13]}  Ne8 {[%clk 0:00:07]} 47. Nf5+ {[%clk 0:00:09]}  Kd7 {[%clk 0:00:05]} 48. Nd4 {[%clk 0:00:06]}  b4 {[%clk 0:00:03]} 49. g8=Q {[%clk 0:00:05]}  Nf6+ {[%clk 0:00:04]} 50. Kg7 {[%clk 0:00:06]}  Nxg8 {[%clk 0:00:05]} 51. Kxg8 {[%clk 0:00:06]}  a6 {[%clk 0:00:03]} 52. Kf7 {[%clk 0:00:07]}  Kd6 {[%clk 0:00:04]} 53. Kf6 {[%clk 0:00:06]}  Kd5 {[%clk 0:00:05]} 54. Nc2 {[%clk 0:00:05]}  a5 {[%clk 0:00:04]} 55. Kf5 {[%clk 0:00:05]}  Kc4 {[%clk 0:00:04]} 56. Ke4 {[%clk 0:00:04]}  Kc3 {[%clk 0:00:05]} 57. Ne3 {[%clk 0:00:04]}  Kb2 {[%clk 0:00:04]} 58. Nc4+ {[%clk 0:00:03]}  Kxa2 {[%clk 0:00:03]} 59. Nxa5 {[%clk 0:00:04]}  b3 {[%clk 0:00:04]} 60. Nxb3 {[%clk 0:00:04]} 1/2-1/2